[Event "GER-ch Youth-U10 2022"]
[Site "Willingen"]
[Date "2022.06.06"]
[Round "3.12"]
[White "Hagn, Tobias"]
[Black "Rodriguez Klasen, Ennio"]
[Result "0-1"]
[ECO "B01"]
[WhiteElo "1337"]
[BlackElo "1315"]
[Annotator "NA RC COMBH"]
[PlyCount "118"]
[EventDate "2022.06.05"]
[EventType "swiss"]
[EventRounds "11"]
[EventCountry "GER"]
[SourceTitle "playchess.com"]
[Source "ChessBase"]
[SourceQuality "1"]
[TimeControl "40/4500+30:900+30"]

1. e4 {[%emt 0:00:02]} d5 {[%emt 0:00:12]} 2. exd5 {[%emt 0:00:08]} Qxd5 {[%emt 0:00:09]} 3. Nc3 {[%emt 0:00:18]} Qa5 {[%emt 0:00:12]} 4. d4 {[%emt 0:00:22]} Nf6 {[%emt 0:00:19]} 5. Bd2 {[%emt 0:00:37]} Nc6 {[%emt 0:11:23]} 6. Nb5 {[%emt 0:02:23]} Qb6 {[%emt 0:02:32]} 7. Bc3 {[%emt 0:03:46]} a6 {[%emt 0:03:05]} 8. Na3 {[%emt 0:00:16]} Ne4 {[%emt 0:12:37]} 9. Nc4 {[%emt 0:03:07]} Nxc3 {[%emt 0:03:05]} 10. Nxb6 {[%emt 0:00:33]} Nxd1 {[%emt 0:00:50]} 11. Nxa8 {[%emt 0:00:06]} Nxb2 {[%emt 0:02:15]} 12. Nxc7+ {[%emt 0:00:42]} Kd8 {[%emt 0:00:59]} 13. Nd5 {[%emt 0:00:56]} Nxd4 {[%emt 0:02:36]} 14. Kd2 {[%emt 0:03:48]} g6 {[%emt 0:18:03]} 15. Kc3 {[%emt 0:03:41]} Na4+ {[%emt 0:00:43]} 16. Kd2 {[%emt 0:03:57]} e6 {[%emt 0:03:26]} 17. c3 {[%emt 0:03:29]} Nc6 {[%emt 0:06:36]} 18. Ne3 {[%emt 0:01:20]} Nxc3 {[%emt 0:01:16]} 19. Ne2 {[%emt 0:00:58]} Ne4+ {[%emt 0:00:31]} 20. Ke1 {[%emt 0:00:41]} Bb4+ {[%emt 0:00:19]} 21. Kd1 {[%emt 0:01:28]} Nxf2+ {[%emt 0:00:16]} 22. Kc2 {[%emt 0:00:20]} Nxh1 {[%emt 0:00:10]} 23. Rd1+ {[%emt 0:01:17]} Ke7 {[%emt 0:00:28]} 24. Nd4 {[%emt 0:00:35]} Nxd4+ {[%emt 0:01:30]} 25. Rxd4 {[%emt 0:00:16]} Bc5 {[%emt 0:00:09]} 26. Rd3 {[%emt 0:00:20]} Nf2 {[%emt 0:00:21]} 27. Rb3 {[%emt 0:00:12]} Ne4 {[%emt 0:00:41]} 28. Nc4 {[%emt 0:00:47]} b5 {[%emt 0:01:28]} 29. Ne5 {[%emt 0:00:45]} Bb7 {[%emt 0:00:57]} 30. a4 {[%emt 0:00:28]} f6 {[%emt 0:03:20]} 31. Nd3 {[%emt 0:00:20]} Bd5 {[%emt 0:00:57]} 32. Nxc5 {[%emt 0:01:16]} Nxc5 {[%emt 0:00:09]} 33. Rc3 {[%emt 0:00:25]} Kd6 {[%emt 0:01:47]} 34. axb5 {[%emt 0:00:12]} axb5 {[%emt 0:00:25]} 35. Bxb5 {[%emt 0:00:10]} Rb8 {[%emt 0:00:17]} 36. Be2 {[%emt 0:00:53]} Bxg2 {[%emt 0:00:34]} 37. Rg3 {[%emt 0:00:19]} Be4+ {[%emt 0:00:25]} 38. Kd2 {[%emt 0:00:52]} Ke5 {[%emt 0:00:32]} 39. Rc3 {[%emt 0:00:34]} Rd8+ {[%emt 0:00:55]} 40. Ke3 {[%emt 0:00:25]} Nd3 {[%emt 0:01:10]} 41. Ra3 {[%emt 0:15:48]} f5 {[%emt 0:15:42]} 42. Ra5+ {[%emt 0:00:29]} Rd5 {[%emt 0:00:13]} 43. Ra7 {[%emt 0:00:21]} f4+ {[%emt 0:00:10]} 44. Kd2 {[%emt 0:00:06]} f3 {[%emt 0:00:25]} 45. Ke3 {[%emt 0:00:59]} fxe2 {[%emt 0:00:16]} 46. Kxe2 {[%emt 0:00:13]} Nf4+ {[%emt 0:00:07]} 47. Ke1 {[%emt 0:00:13]} h5 {[%emt 0:00:36]} 48. h4 {[%emt 0:00:16]} Ng2+ {[%emt 0:01:32]} 49. Ke2 {[%emt 0:00:15]} Nxh4 {[%emt 0:00:32]} 50. Kf2 {[%emt 0:00:07]} Kf4 {[%emt 0:00:25]} 51. Ke2 {[%emt 0:00:17]} Bf3+ {[%emt 0:00:19]} 52. Kf2 {[%emt 0:00:27]} Rd2+ {[%emt 0:00:05]} 53. Ke1 {[%emt 0:00:07]} Re2+ {[%emt 0:00:19]} 54. Kf1 {[%emt 0:00:12]} Kg3 {[%emt 0:00:19]} 55. Ra4 {[%emt 0:00:33]} Ng2 {[%emt 0:00:41]} 56. Ra1 {[%emt 0:00:38]} h4 {[%emt 0:00:29]} 57. Rb1 {[%emt 0:00:41]} h3 {[%emt 0:00:14]} 58. Kg1 {[%emt 0:00:07]} h2+ {[%emt 0:00:12]} 59. Kh1 {[%emt 0:00:25]} Nh4# {[%emt 0:00:06]} 0-1

[Event "GER-ch Youth-U10 2022"]
[Site "Willingen"]
[Date "2022.06.06"]
[Round "3.13"]
[White "Wagener, Nicolas"]
[Black "Tak, Rannveer"]
[Result "0-1"]
[ECO "C11"]
[WhiteElo "1315"]
[BlackElo "1746"]
[Annotator "NA RC COMBH"]
[PlyCount "134"]
[EventDate "2022.06.05"]
[EventType "swiss"]
[EventRounds "11"]
[EventCountry "GER"]
[SourceTitle "playchess.com"]
[Source "ChessBase"]
[SourceQuality "1"]
[TimeControl "40/4500+30:900+30"]

1. e4 {[%emt 0:00:03]} e6 {[%emt 0:00:03]} 2. Nf3 {[%emt 0:00:08]} d5 {[%emt 0:00:06]} 3. Nc3 {[%emt 0:00:06]} Nf6 {[%emt 0:00:30]} 4. e5 {[%emt 0:00:05]} Nfd7 {[%emt 0:00:06]} 5. d4 {[%emt 0:00:07]} c5 {[%emt 0:00:11]} 6. dxc5 {[%emt 0:00:05]} Bxc5 {[%emt 0:00:16]} 7. Bd3 {[%emt 0:00:13]} Nc6 {[%emt 0:00:27]} 8. Bf4 {[%emt 0:00:06]} Qb6 {[%emt 0:05:11]} 9. O-O {[%emt 0:00:08]} f6 {[%emt 0:06:39]} 10. exf6 {[%emt 0:00:58]} Nxf6 {[%emt 0:00:10]} 11. Na4 {[%emt 0:00:13]} Qa5 {[%emt 0:00:59]} 12. c3 {[%emt 0:00:59]} Be7 {[%emt 0:00:32]} 13. Ne5 {[%emt 0:01:43]} O-O {[%emt 0:07:52]} 14. b4 {[%emt 0:01:21]} Qd8 {[%emt 0:00:54]} 15. b5 {[%emt 0:00:28]} Nxe5 {[%emt 0:00:38]} 16. Bxe5 {[%emt 0:00:08]} Bd6 {[%emt 0:00:18]} 17. Bxf6 {[%emt 0:01:55]} Rxf6 {[%emt 0:02:03]} 18. Qh5 {[%emt 0:02:44]} Rh6 {[%emt 0:02:21]} 19. Qg4 {[%emt 0:01:48]} Bxh2+ {[%emt 0:00:38]} 20. Kh1 {[%emt 0:00:09]} Bd6+ {[%emt 0:00:59]} 21. Kg1 {[%emt 0:00:17]} Rh4 {[%emt 0:00:34]} 22. Qf3 {[%emt 0:00:34]} Rxa4 {[%emt 0:01:16]} 23. Qh5 {[%emt 0:01:07]} g6 {[%emt 0:05:10]} 24. Bxg6 {[%emt 0:01:10]} hxg6 {[%emt 0:01:39]} 25. Qxg6+ {[%emt 0:00:09]} Kf8 {[%emt 0:00:13]} 26. Qh6+ {[%emt 0:00:11]} Ke8 {[%emt 0:00:35]} 27. Qg6+ {[%emt 0:01:01]} Kd7 {[%emt 0:01:04]} 28. Rfe1 {[%emt 0:00:16]} Kc7 {[%emt 0:00:47]} 29. Qc2 {[%emt 0:00:35]} Rh4 {[%emt 0:02:36]} 30. g3 {[%emt 0:00:36]} Rh6 {[%emt 0:00:39]} 31. c4 {[%emt 0:00:12]} Kb8 {[%emt 0:01:07]} 32. cxd5 {[%emt 0:00:17]} Qh8 {[%emt 0:03:23]} 33. dxe6 {[%emt 0:02:37]} Rh1+ {[%emt 0:00:16]} 34. Kg2 {[%emt 0:00:05]} Qh3+ {[%emt 0:02:45]} 35. Kf3 {[%emt 0:00:06]} Rxe1 {[%emt 0:00:56]} 36. Rxe1 {[%emt 0:00:09]} Bxe6 {[%emt 0:00:25]} 37. Qg6 {[%emt 0:02:05]} Qf5+ {[%emt 0:01:43]} 38. Qxf5 {[%emt 0:00:08]} Bxf5 {[%emt 0:00:06]} 39. Re8+ {[%emt 0:00:12]} Bc8 {[%emt 0:00:17]} 40. g4 {[%emt 0:00:25]} Kc7 {[%emt 0:00:51]} 41. g5 {[%emt 0:15:17]} Bg4+ {[%emt 0:17:46]} 42. Kxg4 {[%emt 0:00:09]} Rxe8 {[%emt 0:00:05]} 43. g6 {[%emt 0:00:05]} Be5 {[%emt 0:00:11]} 44. f4 {[%emt 0:00:08]} Bxf4 {[%emt 0:00:28]} 45. Kxf4 {[%emt 0:00:13]} Kb6 {[%emt 0:00:05]} 46. a4 {[%emt 0:00:14]} Ka5 {[%emt 0:00:06]} 47. Kf5 {[%emt 0:00:12]} Kxa4 {[%emt 0:00:07]} 48. b6 {[%emt 0:00:12]} axb6 {[%emt 0:00:05]} 49. g7 {[%emt 0:00:09]} b5 {[%emt 0:00:05]} 50. Kf6 {[%emt 0:00:05]} b4 {[%emt 0:00:06]} 51. Kf7 {[%emt 0:00:06]} Rc8 {[%emt 0:00:09]} 52. g8=Q {[%emt 0:00:23]} Rxg8 {[%emt 0:00:10]} 53. Kxg8 {[%emt 0:00:15]} b3 {[%emt 0:00:03]} 54. Kf7 {[%emt 0:00:34]} b2 {[%emt 0:00:33]} 55. Ke6 {[%emt 0:00:07]} b1=Q {[%emt 0:00:10]} 56. Kd5 {[%emt 0:00:06]} Qc1 {[%emt 0:00:02]} 57. Kd6 {[%emt 0:00:09]} b5 {[%emt 0:00:03]} 58. Kd5 {[%emt 0:00:04]} b4 {[%emt 0:00:01]} 59. Kd4 {[%emt 0:00:17]} b3 {[%emt 0:00:05]} 60. Kd3 {[%emt 0:00:11]} Qc2+ {[%emt 0:00:11]} 61. Kd4 {[%emt 0:00:14]} b2 {[%emt 0:00:05]} 62. Kd5 {[%emt 0:00:17]} b1=Q {[%emt 0:00:32]} 63. Kd6 {[%emt 0:01:04]} Qbd1+ {[%emt 0:00:07]} 64. Ke5 {[%emt 0:00:13]} Qce2+ {[%emt 0:00:04]} 65. Kf4 {[%emt 0:00:12]} Qdf1+ {[%emt 0:00:10]} 66. Kg3 {[%emt 0:00:46]} Qeg2+ {[%emt 0:00:18]} 67. Kh4 {[%emt 0:00:09]} Qfh1# {[%emt 0:00:25]} 0-1

[Event "GER-ch Youth-U10 2022"]
[Site "Willingen"]
[Date "2022.06.06"]
[Round "3.14"]
[White "Rinke, Alexander"]
[Black "Vu, Khoi Nguyen"]
[Result "0-1"]
[ECO "C60"]
[WhiteElo "1292"]
[BlackElo "1627"]
[Annotator "NA RC COMBH"]
[PlyCount "72"]
[EventDate "2022.06.05"]
[EventType "swiss"]
[EventRounds "11"]
[EventCountry "GER"]
[SourceTitle "playchess.com"]
[Source "ChessBase"]
[SourceQuality "1"]
[TimeControl "40/4500+30:900+30"]

1. e4 {[%emt 0:00:01]} e5 {[%emt 0:00:05]} 2. Nf3 {[%emt 0:00:09]} Nc6 {[%emt 0:00:04]} 3. Bb5 {[%emt 0:00:10]} Nge7 {[%emt 0:00:09]} 4. O-O {[%emt 0:01:18]} g6 {[%emt 0:00:07]} 5. d4 {[%emt 0:01:00]} exd4 {[%emt 0:00:05]} 6. Nxd4 {[%emt 0:00:23]} Bg7 {[%emt 0:00:25]} 7. c3 {[%emt 0:07:30]} O-O {[%emt 0:01:47]} 8. Bg5 {[%emt 0:00:37]} f6 {[%emt 0:01:39]} 9. Bc4+ {[%emt 0:09:25]} Kh8 {[%emt 0:03:56]} 10. Bf4 {[%emt 0:00:38]} Ne5 {[%emt 0:06:53]} 11. Bb3 {[%emt 0:08:30]} b6 {[%emt 0:06:14]} 12. Nd2 {[%emt 0:03:49]} Bb7 {[%emt 0:03:22]} 13. Qe2 {[%emt 0:02:02]} a6 {[%emt 0:02:11]} 14. N4f3 {[%emt 0:07:19]} c5 {[%emt 0:09:30]} 15. Nxe5 {[%emt 0:02:00]} fxe5 {[%emt 0:00:12]} 16. Bg5 {[%emt 0:00:35]} Bf6 {[%emt 0:00:21]} 17. Bh6 {[%emt 0:00:52]} Bg7 {[%emt 0:00:07]} 18. Bg5 {[%emt 0:00:11]} Bf6 {[%emt 0:00:04]} 19. Bh6 {[%emt 0:00:15]} Bg7 {[%emt 0:00:14]} 20. Bg5 {[%emt 0:00:02]} b5 {[%emt 0:00:50]} 21. Bc2 {[%emt 0:00:51]} d6 {[%emt 0:01:12]} 22. Rad1 {[%emt 0:00:42]} Bc8 {[%emt 0:04:13]} 23. h3 {[%emt 0:01:10]} Qc7 {[%emt 0:04:10]} 24. Bxe7 {[%emt 0:01:44]} Qxe7 {[%emt 0:00:08]} 25. Nf3 {[%emt 0:00:30]} Be6 {[%emt 0:00:27]} 26. a3 {[%emt 0:00:34]} Rf7 {[%emt 0:00:13]} 27. Rd2 {[%emt 0:02:52]} Bh6 {[%emt 0:00:30]} 28. Rdd1 {[%emt 0:00:32]} Raf8 {[%emt 0:00:10]} 29. Rfe1 {[%emt 0:03:26]} Bxh3 {[%emt 0:00:19]} 30. gxh3 {[%emt 0:00:40]} Rxf3 {[%emt 0:00:04]} 31. Kh2 {[%emt 0:02:11]} Bf4+ {[%emt 0:00:41]} 32. Kg1 {[%emt 0:00:09]} Qg5+ {[%emt 0:00:12]} 33. Kf1 {[%emt 0:00:21]} Bh2 {[%emt 0:00:15]} 34. Qxf3 {[%emt 0:02:09]} Rxf3 {[%emt 0:00:47]} 35. Ke2 {[%emt 0:00:13]} Qg2 {[%emt 0:00:18]} 36. Kd2 {[%emt 0:00:10]} Bf4+ {[%emt 0:00:12]} 0-1

[Event "GER-ch Youth-U10 2022"]
[Site "Willingen"]
[Date "2022.06.06"]
[Round "3.15"]
[White "Moskalenko, Michael"]
[Black "Lee, Ho In"]
[Result "1-0"]
[ECO "E94"]
[WhiteElo "1266"]
[BlackElo "1396"]
[Annotator "NA RC COMBH"]
[PlyCount "47"]
[EventDate "2022.06.05"]
[EventType "swiss"]
[EventRounds "11"]
[EventCountry "GER"]
[SourceTitle "playchess.com"]
[Source "ChessBase"]
[SourceQuality "1"]
[TimeControl "40/4500+30:900+30"]

1. d4 {[%emt 0:00:02]} Nf6 {[%emt 0:00:08]} 2. c4 {[%emt 0:00:08]} g6 {[%emt 0:00:15]} 3. Nc3 {[%emt 0:00:05]} Bg7 {[%emt 0:00:07]} 4. e4 {[%emt 0:00:05]} d6 {[%emt 0:00:06]} 5. Nf3 {[%emt 0:00:06]} O-O {[%emt 0:00:13]} 6. Be2 {[%emt 0:00:07]} Nbd7 {[%emt 0:00:13]} 7. O-O {[%emt 0:00:27]} e5 {[%emt 0:01:02]} 8. Bg5 {[%emt 0:02:31]} c6 {[%emt 0:05:25]} 9. d5 {[%emt 0:05:28]} Qc7 {[%emt 0:12:33]} 10. Nd2 {[%emt 0:00:27]} a5 {[%emt 0:01:12]} 11. f3 {[%emt 0:01:05]} Qb6+ {[%emt 0:02:29]} 12. Kh1 {[%emt 0:01:04]} Qxb2 {[%emt 0:05:33]} 13. Na4 {[%emt 0:00:43]} Qd4 {[%emt 0:00:27]} 14. Qc1 {[%emt 0:02:37]} Qa7 {[%emt 0:04:10]} 15. Rb1 {[%emt 0:03:24]} cxd5 {[%emt 0:04:02]} 16. cxd5 {[%emt 0:00:18]} Qd4 {[%emt 0:00:40]} 17. Qc2 {[%emt 0:03:48]} h6 {[%emt 0:07:38]} 18. Bh4 {[%emt 0:00:43]} Qa7 {[%emt 0:05:36]} 19. Bf2 {[%emt 0:00:29]} Qb8 {[%emt 0:01:05]} 20. Rfc1 {[%emt 0:02:32]} Ne8 {[%emt 0:05:28]} 21. Nc4 {[%emt 0:03:51]} Qc7 {[%emt 0:08:55]} 22. Ncb6 {[%emt 0:02:55]} Qxc2 {[%emt 0:00:35]} 23. Rxc2 {[%emt 0:00:11]} Nxb6 {[%emt 0:00:19]} 24. Nxb6 {[%emt 0:00:09]} 1-0

[Event "GER-ch Youth-U10 2022"]
[Site "Willingen"]
[Date "2022.06.06"]
[Round "3.16"]
[White "Fels, Mattis"]
[Black "Heitmann, Erik"]
[Result "0-1"]
[ECO "D00"]
[WhiteElo "1395"]
[BlackElo "1287"]
[Annotator "NA RC COMBH"]
[PlyCount "88"]
[EventDate "2022.06.05"]
[EventType "swiss"]
[EventRounds "11"]
[EventCountry "GER"]
[SourceTitle "playchess.com"]
[Source "ChessBase"]
[SourceQuality "1"]
[TimeControl "40/4500+30:900+30"]

1. d4 {[%emt 0:00:01]} d5 {[%emt 0:00:11]} 2. Nc3 {[%emt 0:00:17]} Nf6 {[%emt 0:00:17]} 3. Bf4 {[%emt 0:00:17]} c6 {[%emt 0:00:17]} 4. e3 {[%emt 0:00:18]} Bf5 {[%emt 0:01:34]} 5. f3 {[%emt 0:00:23]} e6 {[%emt 0:00:31]} 6. g4 {[%emt 0:00:23]} Bg6 {[%emt 0:00:17]} 7. h4 {[%emt 0:00:27]} h6 {[%emt 0:00:55]} 8. Bd3 {[%emt 0:00:43]} Bh7 {[%emt 0:01:25]} 9. Nge2 {[%emt 0:02:35]} Be7 {[%emt 0:01:10]} 10. Qd2 {[%emt 0:05:15]} Bxd3 {[%emt 0:01:51]} 11. cxd3 {[%emt 0:02:02]} Nfd7 {[%emt 0:01:08]} 12. e4 {[%emt 0:01:08]} Bxh4+ {[%emt 0:00:34]} 13. Ng3 {[%emt 0:01:30]} g5 {[%emt 0:02:27]} 14. Rxh4 {[%emt 0:20:43]} gxh4 {[%emt 0:00:30]} 15. Qe2 {[%emt 0:00:59]} hxg3 {[%emt 0:03:25]} 16. exd5 {[%emt 0:00:16]} Qe7 {[%emt 0:00:20]} 17. d6 {[%emt 0:00:44]} Qh4 {[%emt 0:00:40]} 18. d5 {[%emt 0:00:22]} g2+ {[%emt 0:00:11]} 19. Kd2 {[%emt 0:00:13]} Qf6 {[%emt 0:01:06]} 20. Qe3 {[%emt 0:00:37]} e5 {[%emt 0:01:14]} 21. d4 {[%emt 0:00:18]} Qxf4 {[%emt 0:00:19]} 22. Qxf4 {[%emt 0:00:22]} exf4 {[%emt 0:00:11]} 23. Re1+ {[%emt 0:00:17]} Kd8 {[%emt 0:00:24]} 24. Ke2 {[%emt 0:00:29]} Re8+ {[%emt 0:00:07]} 25. Ne4 {[%emt 0:00:20]} cxd5 {[%emt 0:00:07]} 26. Kf2 {[%emt 0:00:09]} dxe4 {[%emt 0:00:17]} 27. fxe4 {[%emt 0:00:12]} Nc6 {[%emt 0:00:16]} 28. Kxg2 {[%emt 0:00:26]} Nxd4 {[%emt 0:00:06]} 29. Rc1 {[%emt 0:00:22]} Rxe4 {[%emt 0:00:21]} 30. Rc4 {[%emt 0:00:24]} Nf6 {[%emt 0:00:52]} 31. a4 {[%emt 0:00:24]} Rc8 {[%emt 0:00:25]} 32. Rb4 {[%emt 0:00:20]} b6 {[%emt 0:00:10]} 33. a5 {[%emt 0:00:18]} f3+ {[%emt 0:00:12]} 34. Kg3 {[%emt 0:00:08]} Rxg4+ {[%emt 0:00:07]} 35. Kf2 {[%emt 0:00:13]} bxa5 {[%emt 0:00:18]} 36. Rb7 {[%emt 0:00:12]} Ne4+ {[%emt 0:00:19]} 37. Ke3 {[%emt 0:00:12]} Nxd6 {[%emt 0:00:20]} 38. Rxa7 {[%emt 0:00:20]} N6f5+ {[%emt 0:00:13]} 39. Kf2 {[%emt 0:00:10]} Rg2+ {[%emt 0:00:09]} 40. Kf1 {[%emt 0:00:16]} Ng3+ {[%emt 0:00:19]} 41. Ke1 {[%emt 0:15:18]} f2+ {[%emt 0:15:16]} 42. Kd2 {[%emt 0:00:05]} f1=Q+ {[%emt 0:00:20]} 43. Ke3 {[%emt 0:22:05]} Re2+ {[%emt 0:00:12]} 44. Kxd4 {[%emt 0:10:27]} Qd1# {[%emt 0:00:13]} 0-1

[Event "GER-ch Youth-U10 2022"]
[Site "Willingen"]
[Date "2022.06.06"]
[Round "3.18"]
[White "Rohatgi, Kushagra"]
[Black "Menke, Raphael Wilhelm"]
[Result "1-0"]
[ECO "C54"]
[WhiteElo "1222"]
[BlackElo "1212"]
[Annotator "NA RC COMBH"]
[PlyCount "105"]
[EventDate "2022.06.05"]
[EventType "swiss"]
[EventRounds "11"]
[EventCountry "GER"]
[SourceTitle "playchess.com"]
[Source "ChessBase"]
[SourceQuality "1"]
[TimeControl "40/4500+30:900+30"]

1. e4 {[%emt 0:00:04]} e5 {[%emt 0:00:02]} 2. Nf3 {[%emt 0:00:06]} Nc6 {[%emt 0:00:04]} 3. Bc4 {[%emt 0:00:08]} Nf6 {[%emt 0:00:06]} 4. d3 {[%emt 0:00:06]} Bc5 {[%emt 0:00:25]} 5. c3 {[%emt 0:00:17]} a6 {[%emt 0:00:12]} 6. a4 {[%emt 0:00:27]} d6 {[%emt 0:00:19]} 7. O-O {[%emt 0:00:19]} h6 {[%emt 0:00:21]} 8. h3 {[%emt 0:00:11]} g5 {[%emt 0:00:12]} 9. d4 {[%emt 0:03:15]} Ba7 {[%emt 0:00:56]} 10. dxe5 {[%emt 0:01:46]} dxe5 {[%emt 0:00:22]} 11. Qxd8+ {[%emt 0:01:34]} Kxd8 {[%emt 0:00:22]} 12. Bxf7 {[%emt 0:02:21]} Nxe4 {[%emt 0:03:33]} 13. Bd5 {[%emt 0:02:10]} Nd6 {[%emt 0:04:35]} 14. Bxc6 {[%emt 0:02:31]} bxc6 {[%emt 0:00:43]} 15. Nxe5 {[%emt 0:01:33]} Bb7 {[%emt 0:01:32]} 16. Nd2 {[%emt 0:03:11]} Rf8 {[%emt 0:07:03]} 17. Ndf3 {[%emt 0:04:26]} Rf5 {[%emt 0:08:47]} 18. Be3 {[%emt 0:07:03]} Bxe3 {[%emt 0:03:34]} 19. fxe3 {[%emt 0:01:31]} Ke7 {[%emt 0:00:15]} 20. Nd3 {[%emt 0:02:57]} Raf8 {[%emt 0:07:13]} 21. Nd4 {[%emt 0:05:39]} Rxf1+ {[%emt 0:04:18]} 22. Rxf1 {[%emt 0:00:55]} Rxf1+ {[%emt 0:00:14]} 23. Kxf1 {[%emt 0:00:11]} a5 {[%emt 0:00:40]} 24. Nc5 {[%emt 0:03:53]} Ba8 {[%emt 0:00:40]} 25. Nde6 {[%emt 0:04:05]} Ne8 {[%emt 0:00:36]} 26. Kf2 {[%emt 0:01:42]} Kf6 {[%emt 0:01:14]} 27. Kg3 {[%emt 0:01:51]} Kf5 {[%emt 0:01:03]} 28. Nd4+ {[%emt 0:01:35]} Kg6 {[%emt 0:00:36]} 29. b4 {[%emt 0:02:06]} axb4 {[%emt 0:04:03]} 30. cxb4 {[%emt 0:00:44]} Kf6 {[%emt 0:02:21]} 31. h4 {[%emt 0:02:18]} Ng7 {[%emt 0:01:26]} 32. hxg5+ {[%emt 0:01:12]} hxg5 {[%emt 0:00:40]} 33. Kg4 {[%emt 0:01:01]} Kg6 {[%emt 0:00:29]} 34. Nde6 {[%emt 0:01:22]} Nxe6 {[%emt 0:00:20]} 35. Nxe6 {[%emt 0:00:12]} Kf6 {[%emt 0:05:35]} 36. Nc5 {[%emt 0:01:18]} Kg6 {[%emt 0:00:32]} 37. e4 {[%emt 0:00:33]} Kf6 {[%emt 0:00:25]} 38. g3 {[%emt 0:00:41]} Ke5 {[%emt 0:00:33]} 39. Kxg5 {[%emt 0:00:35]} Kd4 {[%emt 0:00:35]} 40. Kf5 {[%emt 0:00:55]} Kc4 {[%emt 0:00:04]} 41. Ke5 {[%emt 0:16:43]} Kxb4 {[%emt 0:15:11]} 42. Kd4 {[%emt 0:00:14]} Ka5 {[%emt 0:01:12]} 43. e5 {[%emt 0:00:24]} Kb6 {[%emt 0:00:07]} 44. e6 {[%emt 0:00:22]} Bb7 {[%emt 0:00:03]} 45. Nxb7 {[%emt 0:00:25]} Kxb7 {[%emt 0:00:05]} 46. e7 {[%emt 0:00:11]} Kb6 {[%emt 0:00:06]} 47. e8=Q {[%emt 0:00:31]} c5+ {[%emt 0:00:13]} 48. Kc4 {[%emt 0:00:13]} Kb7 {[%emt 0:00:33]} 49. Kxc5 {[%emt 0:00:32]} c6 {[%emt 0:00:19]} 50. Qxc6+ {[%emt 0:00:19]} Kb8 {[%emt 0:00:15]} 51. a5 {[%emt 0:00:14]} Ka7 {[%emt 0:00:07]} 52. a6 {[%emt 0:00:13]} Kb8 {[%emt 0:00:05]} 53. Qb7# {[%emt 0:00:07]} 1-0

[Event "GER-ch Youth-U10 2022"]
[Site "Willingen"]
[Date "2022.06.06"]
[Round "3.19"]
[White "Rudolph, Simon"]
[Black "Khanbekyan, Aram"]
[Result "1-0"]
[ECO "B34"]
[WhiteElo "1361"]
[BlackElo "998"]
[Annotator "NA RC COMBH"]
[PlyCount "53"]
[EventDate "2022.06.05"]
[EventType "swiss"]
[EventRounds "11"]
[EventCountry "GER"]
[SourceTitle "playchess.com"]
[Source "ChessBase"]
[SourceQuality "1"]
[TimeControl "40/4500+30:900+30"]

1. e4 {[%emt 0:00:03]} c5 {[%emt 0:00:00]} 2. Nf3 {[%emt 0:00:05]} Nc6 {[%emt 0:00:00]} 3. d4 {[%emt 0:00:06]} cxd4 {[%emt 0:00:00]} 4. Nxd4 {[%emt 0:00:05]} g6 {[%emt 0:00:00]} 5. b3 {[%emt 0:00:40]} Bg7 {[%emt 0:00:02]} 6. Bb2 {[%emt 0:00:08]} Qb6 {[%emt 0:01:00]} 7. c3 {[%emt 0:00:53]} Nf6 {[%emt 0:01:01]} 8. Qc2 {[%emt 0:02:16]} O-O {[%emt 0:00:27]} 9. Be2 {[%emt 0:00:32]} Re8 {[%emt 0:00:22]} 10. O-O {[%emt 0:00:30]} e6 {[%emt 0:01:13]} 11. Nb5 {[%emt 0:03:06]} a6 {[%emt 0:00:48]} 12. Nd6 {[%emt 0:02:16]} Re7 {[%emt 0:01:07]} 13. Ba3 {[%emt 0:01:04]} Re8 {[%emt 0:02:41]} 14. Nxe8 {[%emt 0:00:36]} Nxe8 {[%emt 0:00:10]} 15. Bb2 {[%emt 0:01:26]} d5 {[%emt 0:00:40]} 16. exd5 {[%emt 0:01:29]} exd5 {[%emt 0:00:10]} 17. Rd1 {[%emt 0:02:40]} Nc7 {[%emt 0:00:17]} 18. Bf3 {[%emt 0:01:49]} Be6 {[%emt 0:01:50]} 19. Na3 {[%emt 0:01:34]} Bf8 {[%emt 0:03:24]} 20. Nb1 {[%emt 0:06:42]} Bc5 {[%emt 0:00:56]} 21. c4 {[%emt 0:01:44]} dxc4 {[%emt 0:02:21]} 22. bxc4 {[%emt 0:00:59]} Na5 {[%emt 0:00:33]} 23. Nc3 {[%emt 0:03:24]} Nxc4 {[%emt 0:00:40]} 24. Na4 {[%emt 0:00:35]} Qb5 {[%emt 0:00:56]} 25. Nxc5 {[%emt 0:00:47]} Qxc5 {[%emt 0:00:27]} 26. Qc3 {[%emt 0:02:04]} Ne5 {[%emt 0:01:47]} 27. Qxc5 {[%emt 0:00:25]} 1-0

[Event "GER-ch Youth-U10 2022"]
[Site "Willingen"]
[Date "2022.06.06"]
[Round "3.20"]
[White "Leonhardt, Max"]
[Black "Svanidze, Alexander"]
[Result "0-1"]
[ECO "A46"]
[WhiteElo "1114"]
[BlackElo "1348"]
[Annotator "NA RC COMBH"]
[PlyCount "84"]
[EventDate "2022.06.05"]
[EventType "swiss"]
[EventRounds "11"]
[EventCountry "GER"]
[SourceTitle "playchess.com"]
[Source "ChessBase"]
[SourceQuality "1"]
[TimeControl "40/4500+30:900+30"]

1. d4 {[%emt 0:00:02]} Nf6 {[%emt 0:00:10]} 2. c4 {[%emt 0:00:09]} c5 {[%emt 0:00:08]} 3. Nc3 {[%emt 0:00:14]} cxd4 {[%emt 0:00:13]} 4. Qxd4 {[%emt 0:00:07]} Nc6 {[%emt 0:00:09]} 5. Qd1 {[%emt 0:00:12]} e6 {[%emt 0:01:24]} 6. Nf3 {[%emt 0:00:14]} Bc5 {[%emt 0:01:05]} 7. Bg5 {[%emt 0:00:34]} Qb6 {[%emt 0:02:01]} 8. e3 {[%emt 0:01:25]} Qxb2 {[%emt 0:00:52]} 9. Rc1 {[%emt 0:02:53]} Bb4 {[%emt 0:01:32]} 10. Bxf6 {[%emt 0:00:30]} gxf6 {[%emt 0:00:23]} 11. Qd2 {[%emt 0:00:56]} Qxd2+ {[%emt 0:01:26]} 12. Nxd2 {[%emt 0:01:12]} a6 {[%emt 0:01:31]} 13. g3 {[%emt 0:01:30]} Rb8 {[%emt 0:07:35]} 14. Bg2 {[%emt 0:01:25]} b6 {[%emt 0:00:33]} 15. O-O {[%emt 0:01:20]} Bb7 {[%emt 0:00:36]} 16. Nde4 {[%emt 0:00:39]} Ke7 {[%emt 0:00:24]} 17. Ne2 {[%emt 0:01:59]} e5 {[%emt 0:00:58]} 18. Rfd1 {[%emt 0:00:54]} h5 {[%emt 0:00:47]} 19. h4 {[%emt 0:00:13]} Na5 {[%emt 0:08:23]} 20. Rb1 {[%emt 0:02:39]} Bc5 {[%emt 0:00:17]} 21. Nxc5 {[%emt 0:02:37]} bxc5 {[%emt 0:00:07]} 22. Bxb7 {[%emt 0:01:02]} Rxb7 {[%emt 0:02:00]} 23. Rxb7 {[%emt 0:01:03]} Nxb7 {[%emt 0:00:05]} 24. Nc3 {[%emt 0:00:28]} d6 {[%emt 0:01:46]} 25. Nd5+ {[%emt 0:00:13]} Ke6 {[%emt 0:00:26]} 26. Nc7+ {[%emt 0:00:54]} Kd7 {[%emt 0:00:09]} 27. Nxa6 {[%emt 0:00:33]} Ra8 {[%emt 0:00:09]} 28. Rb1 {[%emt 0:00:34]} Kc6 {[%emt 0:00:15]} 29. Nxc5 {[%emt 0:00:56]} Nxc5 {[%emt 0:00:07]} 30. Ra1 {[%emt 0:00:29]} Nd3 {[%emt 0:00:05]} 31. Kg2 {[%emt 0:01:21]} Kc5 {[%emt 0:00:16]} 32. f4 {[%emt 0:00:50]} exf4 {[%emt 0:00:10]} 33. exf4 {[%emt 0:00:14]} f5 {[%emt 0:00:14]} 34. Kf3 {[%emt 0:00:33]} Ra3 {[%emt 0:00:45]} 35. Ke2 {[%emt 0:00:13]} Kxc4 {[%emt 0:00:30]} 36. Rg1 {[%emt 0:00:37]} Rxa2+ {[%emt 0:00:15]} 37. Ke3 {[%emt 0:00:19]} d5 {[%emt 0:00:09]} 38. g4 {[%emt 0:01:03]} d4+ {[%emt 0:00:40]} 39. Kf3 {[%emt 0:00:09]} hxg4+ {[%emt 0:00:06]} 40. Kg3 {[%emt 0:00:20]} Nc5 {[%emt 0:00:06]} 41. Rc1+ {[%emt 0:15:25]} Kd5 {[%emt 0:15:07]} 42. h5 {[%emt 0:00:12]} Ne4+ {[%emt 0:00:17]} 0-1